bitfinex-derivatives/quotes_ETHF0:USTF0_20260226
["timestamp","ask_amount","ask_price","bid_price","bid_amount"]
[1772087581094,2.36606553,2064.3,2063.5,0.00620866]
[1772087581299,4.00528067,2064.3,2063.1,2.42236991]
[1772087581496,2.36606553,2064.1,2063.1,2.42236991]
[1772087581697,2.36606553,2063.9,2063.1,2.42236991]
[1772087582199,2.36606553,2064.1,2063.1,2.42719087]
[1772087582402,2.37202457,2063.9,2063.1,2.42719087]
[1772087584801,0.00595904,2063.9,2063.1,2.42719087]
[1772087585804,2.36606553,2064.2,2063.1,2.42719087]
[1772087586099,2.36606553,2064.5,2063.2,5.24923721]
[1772087586307,2.36606553,2064.5,2063.3,2.42236991]
[1772087586705,2.37101254,2064.5,2063.3,2.42236991]
[1772087590311,2.36606553,2064.3,2063.3,2.42236991]
[1772087590507,2.36606553,2064.1,2063.1,2.42719087]
[1772087590706,2.36606553,2063.9,2063.1,0.00482096]
[1772087590901,5.88073418,2064.0,2063.1,0.00482096]
[1772087590902,2.36606553,2063.7,2063.1,0.00482096]
[1772087592105,2.36606553,2063.5,2062.5,2.42236991]
[1772087592304,2.36606553,2063.3,2062.5,2.42236991]
[1772087592902,2.36606553,2063.3,2062.0,6.34]
[1772087592903,2.36606553,2063.3,2062.3,2.42236991]
[1772087593112,2.36606553,2063.3,2062.3,2.42778463]
[1772087594712,2.36606553,2063.3,2062.3,0.00541472]
[1772087594912,2.36606553,2063.1,2062.3,0.00541472]
[1772087595314,43.16606553,2063.1,2062.3,0.00541472]
[1772087595514,2.36606553,2063.0,2062.3,0.00541472]
[1772087595710,2.36606553,2062.8,2062.3,0.00541472]
[1772087595909,2.36606553,2062.8,2062.2,2.42236991]
[1772087596313,2.36606553,2062.8,2061.5,2.42236991]
[1772087597011,2.36606553,2062.8,2061.5,2.42686491]
[1772087597708,2.36606553,2062.7,2061.5,2.42686491]
[1772087598311,11.08206553,2062.9,2061.7,2.42236991]
[1772087598511,2.36606553,2062.8,2061.7,2.42236991]
[1772087600516,2.36606553,2062.6,2061.5,2.42686491]
[1772087600719,0.24239,2062.7,2061.5,2.42686491]
[1772087600720,2.36606553,2062.4,2061.5,2.42686491]
[1772087604216,2.36606553,2062.6,2061.6,2.42236991]
[1772087604415,0.00513924,2063.0,2061.7,2.42236991]
[1772087604822,2.37120477,2063.0,2061.9,2.42236991]
[1772087606219,2.61507896,2063.0,2062.1,2.64562484]
[1772087610719,2.61507895,2062.9,2061.9,2.64562484]
[1772087615429,2.61507895,2062.9,2061.6,2.53338711]
[1772087616230,2.45878795,2062.7,2061.6,2.53338711]
[1772087620133,2.45878795,2062.5,2061.6,2.53338711]
[1772087620533,2.45878795,2062.3,2061.6,2.53338711]
[1772087621236,2.45878795,2062.3,2061.5,0.004495]
[1772087621636,2.45878795,2062.3,2061.5,2.53788211]
[1772087624437,2.45878795,2062.5,2061.5,2.53788211]
[1772087626846,2.45878795,2062.7,2061.5,2.53788211]
[1772087627143,8.09795175,2062.6,2061.5,2.53788211]
[1772087627350,2.45878795,2062.8,2061.5,2.53788211]
[1772087627538,2.45878795,2062.8,2061.7,2.53338711]
[1772087627733,2.45878795,2062.8,2061.9,2.53338711]
[1772087628835,1.62793018,2062.9,2061.9,2.53338711]
[1772087630538,1e-08,2063.0,2062.1,2.53338711]
[1772087632645,2.45878795,2063.4,2062.1,2.53338711]
[1772087633247,2.45878795,2063.3,2062.1,2.53338711]
[1772087633940,2.46376966,2063.3,2062.1,2.53338711]
[1772087634839,0.00498171,2063.3,2062.1,2.53338711]
[1772087635040,0.00498171,2063.3,2062.3,2.53338711]
[1772087635234,2.46376966,2063.3,2062.3,2.53338711]
[1772087642246,0.00498171,2063.3,2062.3,2.53338711]
[1772087642741,2.5146274,2063.3,2062.3,2.53338711]
[1772087645352,0.00498171,2063.3,2062.3,2.53338711]
[1772087645554,0.00498171,2063.3,2062.5,2.75387726]
[1772087645851,0.24228,2063.7,2062.4,5.13468181]
[1772087645852,2.50964569,2063.7,2062.7,2.75387726]
[1772087646053,1.62793018,2063.5,2062.7,2.75387726]
[1772087646745,1.63279012,2063.5,2062.7,2.75387726]
[1772087647146,0.00485994,2063.5,2062.7,2.75387726]
[1772087647551,2.50964569,2064.3,2063.0,2.75387726]
[1772087647747,2.50964569,2064.2,2063.0,2.75387726]
[1772087647943,2.50964569,2064.2,2063.2,2.75387726]
[1772087648147,2.50964569,2064.2,2063.4,2.75387726]
[1772087648652,2.51400051,2064.2,2063.4,2.75957154]
[1772087650955,1.77790156,2064.5,2063.4,2.75957154]
[1772087651145,2.50964569,2064.4,2063.4,2.75957154]
[1772087651755,2.5150311,2064.4,2063.4,2.75957154]
[1772087653153,2.5150311,2064.4,2063.4,0.00569428]
[1772087653547,2.5150311,2064.4,2063.4,2.75957154]
[1772087655950,0.00538541,2064.4,2063.4,2.75957154]
[1772087656351,2.5150311,2064.4,2063.4,2.75957154]
[1772087663160,2.5150311,2064.4,2063.6,2.75387726]
[1772087666162,0.00538541,2064.4,2063.6,2.75387726]
[1772087667162,2.62930724,2064.8,2063.6,2.75387726]
[1772087668263,2.63466412,2064.8,2063.6,2.75387726]
[1772087668568,2.63466412,2064.8,2063.8,2.64199907]
[1772087669261,2.62930724,2065.2,2064.0,2.64199907]
[1772087670259,2.63454345,2065.2,2064.0,2.64199907]
[1772087671071,0.00523621,2065.2,2064.0,2.64199907]
[1772087671368,0.00523621,2065.2,2064.2,2.64199907]
[1772087671565,2.63454345,2065.2,2064.4,2.64199907]
[1772087672674,0.00523621,2065.2,2064.4,2.64199907]
[1772087673868,2.62930724,2065.5,2064.4,2.64199907]
[1772087674067,2.76085563,2066.1,2064.6,2.80283822]
[1772087674464,2.76085563,2066.1,2064.8,2.80283822]
[1772087674669,2.76085563,2066.1,2065.0,2.80283822]
[1772087674975,2.76704634,2066.1,2065.0,2.80710757]
[1772087680582,2.76085563,2065.9,2065.0,0.00426935]
[1772087680879,2.76085563,2065.9,2065.0,2.80710757]
[1772087681073,2.76085563,2065.8,2065.0,2.80710757]
[1772087682381,2.76085563,2065.8,2065.0,0.00426935]
[1772087682581,2.76085563,2065.8,2064.6,9.14583822]
[1772087682976,2.76085563,2065.8,2064.7,2.80283822]
[1772087683177,2.76085563,2065.7,2064.7,2.80283822]
[1772087683480,2.76085563,2065.7,2064.7,2.80746467]
[1772087687079,2.76085563,2065.5,2064.7,2.80746467]
[1772087690082,2.76085563,2065.3,2064.2,2.80283822]
[1772087690277,2.76085563,2065.1,2064.2,2.80283822]
[1772087690584,2.76085563,2065.1,2063.9,2.80283822]
[1772087690884,2.76085563,2065.1,2063.9,2.8068087]
[1772087691080,2.76085563,2064.9,2063.9,2.8068087]
[1772087698095,2.63011132,2064.7,2063.9,2.8068087]
[1772087701093,2.63011132,2064.3,2063.2,2.73985926]
[1772087701888,2.63011132,2064.6,2063.2,2.73985926]
[1772087702094,2.63442572,2064.6,2063.2,2.74499235]
[1772087703597,2.63011132,2064.4,2063.2,2.74499235]
[1772087704198,2.63011132,2064.3,2063.2,2.74499235]
[1772087706798,2.63011132,2064.1,2063.2,2.74499235]
[1772087709597,2.63011132,2063.9,2062.9,2.73985926]
[1772087710596,2.63011132,2063.9,2062.9,2.74407409]
[1772087710801,5.95885,2064.1,2062.9,2.74407409]
[1772087710802,2.63011132,2063.7,2062.9,2.74407409]
[1772087711802,2.63011132,2063.9,2062.9,2.74407409]
[1772087716602,2.63011132,2064.1,2062.9,2.74407409]
[1772087719502,2.63011132,2064.1,2063.0,2.73985926]
[1772087721311,0.2422,2064.4,2063.0,2.73985926]
[1772087721312,2.63011132,2064.3,2063.0,2.73985926]
[1772087721508,2.63011132,2064.3,2063.2,2.73985926]
[1772087722512,2.63011132,2064.1,2063.2,2.73985926]
[1772087724615,2.63011132,2064.3,2063.2,2.73985926]
[1772087726325,8.32996646,2064.2,2063.2,2.73985926]
[1772087726525,2.77370844,2064.2,2063.2,2.73985926]
[1772087726921,2.77370844,2064.5,2063.4,2.76873676]
[1772087727222,2.77370844,2064.3,2063.6,2.76873676]
[1772087729324,2.77370844,2064.1,2063.6,2.76873676]
[1772087730025,2.77370844,2064.1,2063.1,2.76873676]
[1772087732231,2.77370844,2063.9,2063.1,2.76873676]
[1772087735730,2.67795735,2064.2,2063.1,2.76873676]
[1772087735931,8.24178803,2064.1,2063.1,2.76873676]
[1772087736131,2.67795735,2064.1,2063.1,2.76873676]
[1772087739336,2.67795735,2064.0,2063.1,2.76873676]
[1772087742430,2.67795735,2063.8,2063.3,2.80938674]
[1772087743830,2.67795735,2063.8,2063.1,2.80938674]
[1772087744132,2.67795735,2063.3,2062.9,2.81360157]
[1772087747036,2.67795735,2063.8,2062.9,2.81360157]
[1772087747233,2.67795735,2063.7,2062.9,2.81360157]
[1772087748042,2.67795735,2063.9,2062.9,2.81360157]
[1772087748734,2.67795735,2063.9,2063.0,2.80938674]
[1772087752841,2.67795735,2064.2,2063.1,2.80938674]
[1772087753135,2.67795735,2064.2,2063.3,2.80938674]
[1772087754040,2.67795735,2064.0,2063.3,2.80938674]
[1772087754242,2.67795735,2064.2,2063.3,2.80938674]
[1772087756243,2.66927718,2064.0,2063.3,2.80938674]
[1772087760144,2.66927718,2064.0,2063.2,6.344]
[1772087760345,2.66927718,2064.0,2063.2,9.14054877]
[1772087760849,2.66927718,2064.0,2063.3,2.79654877]
[1772087761046,2.66927718,2064.0,2063.1,2.79654877]
[1772087761246,2.66927718,2063.8,2062.9,0.00421483]
[1772087761550,2.66927718,2063.6,2062.9,2.8007636]
[1772087763655,46.60433867,2063.9,2062.9,2.8007636]
[1772087763656,2.66927718,2063.8,2062.9,2.8007636]
[1772087767356,2.66927718,2063.6,2062.9,0.00421483]
[1772087767552,2.66927718,2063.6,2062.9,2.8007636]
[1772087768349,2.66927718,2063.6,2062.9,0.00421483]
[1772087768556,2.66927718,2063.4,2062.6,2.79654877]
[1772087769156,2.66927718,2063.3,2062.6,2.79654877]
[1772087769651,2.66927718,2063.3,2062.6,2.80272158]
[1772087771359,2.66927718,2063.6,2062.6,2.80272158]
[1772087775350,2.66927718,2063.4,2062.6,2.80272158]
[1772087779259,2.66927718,2063.6,2062.6,2.80272158]
[1772087789269,2.73892841,2063.4,2062.6,2.80272158]
[1772087790575,2.73892841,2063.7,2062.6,2.80272158]
[1772087790773,2.73892841,2063.5,2062.6,2.80272158]
[1772087794174,4.26999715,2063.8,2062.6,2.80272158]
[1772087794175,2.73892841,2063.3,2062.6,2.80272158]
[1772087794681,2.48279752,2063.1,2062.6,2.80272158]
[1772087794881,2.48783516,2063.1,2062.6,2.80272158]
[1772087800580,2.48783516,2063.1,2062.3,2.59193089]
[1772087800877,2.48279752,2062.9,2062.2,2.59193089]
[1772087801078,2.48279752,2062.7,2061.9,6.345]
[1772087801284,2.48279752,2062.7,2061.8,2.59193089]
[1772087801473,2.48279752,2062.5,2061.8,2.59193089]
[1772087801675,2.48279752,2062.5,2061.8,0.00356717]
[1772087801878,6.20509,2062.8,2061.6,2.59193089]
[1772087801879,2.48279752,2062.3,2061.6,2.59193089]
[1772087802785,2.48279752,2062.3,2061.6,2.5960464]
[1772087804682,2.48279752,2062.3,2061.6,0.00411551]
[1772087805683,2.48279752,2062.3,2061.6,2.5960464]
[1772087810093,2.48279752,2062.3,2061.6,0.00411551]
[1772087810295,2.48279752,2062.3,2061.6,2.5960464]
[1772087811490,4.27010715,2062.8,2061.6,2.5960464]
[1772087811688,2.48279752,2062.6,2061.6,2.5960464]
[1772087812895,2.48279752,2062.4,2061.6,2.5960464]
[1772087816601,2.48793381,2062.4,2061.6,2.5960464]
[1772087819104,2.48793381,2062.2,2061.4,2.54338859]
[1772087819503,4.91273381,2062.2,2061.4,2.54338859]
[1772087819703,2.48793381,2062.1,2061.4,2.54338859]
[1772087820103,2.48793381,2061.8,2061.4,0.00480278]
[1772087820307,2.48793381,2061.8,2061.4,0.66097607]
[1772087820499,2.48793381,2062.2,2061.4,0.66097607]
[1772087820805,2.48793381,2062.0,2061.4,0.66097607]
[1772087821203,2.48793381,2061.9,2061.4,0.66454822]
[1772087821400,2.4248,2062.0,2061.4,0.66454822]
[1772087821606,2.48793381,2062.2,2061.4,0.66454822]
[1772087821802,2.48793381,2062.1,2061.4,0.66454822]
[1772087823209,2.48793381,2061.9,2061.4,0.00357215]
[1772087823405,2.48793381,2061.9,2061.4,2.54696074]
[1772087823605,2.48793381,2061.7,2061.4,2.54696074]
[1772087824705,4.91273381,2061.7,2061.4,2.54696074]
[1772087825303,2.48793381,2061.9,2061.4,2.54696074]
[1772087826006,2.48793381,2061.8,2061.4,2.54696074]
[1772087827200,2.48793381,2062.2,2061.4,2.54696074]
[1772087828206,5.62714348,2062.1,2061.4,2.54696074]
[1772087828407,2.48793381,2062.0,2061.4,2.54696074]
[1772087829509,2.48793381,2062.4,2061.4,2.54696074]
[1772087829702,8.12048646,2062.3,2061.4,2.54696074]
[1772087829904,2.48793381,2062.3,2061.4,2.54696074]
[1772087833611,2.48793381,2062.4,2061.5,2.54338859]
[1772087833908,2.48793381,2062.5,2061.6,2.54338859]
[1772087834111,8.13424938,2062.4,2061.6,2.54338859]
[1772087834313,2.48793381,2062.4,2061.6,2.54338859]
[1772087834611,2.48793381,2062.6,2061.6,2.54338859]
[1772087834812,8.13315526,2062.5,2061.6,2.54338859]
[1772087835113,2.48793381,2062.5,2061.6,2.54338859]
[1772087836505,2.48793381,2062.6,2061.6,2.54338859]
[1772087836705,2.48793381,2062.7,2061.8,2.54338859]
[1772087836907,2.48793381,2062.8,2061.8,2.54338859]
[1772087837216,2.48793381,2062.6,2061.8,2.54338859]
[1772087837817,2.48793381,2062.8,2062.0,2.54338859]
[1772087838311,2.48793381,2062.6,2062.0,2.54338859]
[1772087839015,1.18586085,2063.0,2062.0,2.54338859]
[1772087839016,2.48793381,2062.4,2062.0,2.54338859]
[1772087839406,2.48793381,2062.9,2062.0,2.54338859]
[1772087839612,2.48793381,2062.6,2062.0,2.54338859]
[1772087839811,2.48793381,2062.8,2062.0,2.54338859]
[1772087840113,2.4248,2062.6,2062.0,2.54338859]
[1772087840308,2.48793381,2062.8,2062.0,2.54338859]
[1772087840511,2.48793381,2063.0,2062.0,2.54338859]
[1772087840712,8.11470501,2062.9,2062.0,2.54338859]
[1772087841018,2.48793381,2062.9,2062.0,2.54338859]
[1772087841817,2.48793381,2062.7,2062.0,2.54338859]
[1772087842612,4.91273381,2062.7,2062.0,2.54338859]
[1772087842819,2.48793381,2062.7,2062.0,2.54338859]
[1772087843312,4.91273381,2062.7,2062.0,2.54338859]
[1772087844411,2.48793381,2062.7,2062.0,2.54338859]
[1772087845019,2.4248,2062.6,2062.0,2.54338859]
[1772087846219,2.48793381,2062.7,2062.0,2.54338859]
[1772087846423,2.4248,2062.6,2062.0,2.54338859]
[1772087846813,2.48793381,2062.7,2062.0,2.54338859]
[1772087847019,2.4248,2062.6,2062.0,2.54338859]
[1772087847220,2.48793381,2062.7,2062.0,2.54338859]
[1772087847422,2.4248,2062.6,2062.0,2.54338859]
[1772087847822,2.48793381,2062.7,2062.0,2.54338859]
[1772087848024,2.4248,2062.5,2062.0,2.54338859]
[1772087848333,2.4248,2062.5,2062.0,8.88938859]
[1772087848526,2.4248,2062.4,2062.1,2.61957232]
[1772087848824,2.48793381,2062.7,2062.1,2.61957232]
[1772087849026,2.4248,2062.5,2062.1,2.61957232]
[1772087849223,2.48793381,2062.7,2062.1,2.61957232]
[1772087849424,2.4248,2062.5,2062.1,2.61957232]
[1772087849625,2.83183539,2062.8,2062.1,2.61957232]
[1772087850027,2.83183539,2062.6,2062.1,2.61957232]
[1772087850532,0.56619086,2062.3,2062.1,2.61957232]
[1772087850827,2.83183539,2062.6,2062.1,2.61957232]
[1772087851431,2.83687303,2063.1,2062.3,2.61957232]
[1772087851828,2.83183539,2063.0,2062.3,2.61957232]
[1772087858130,0.00503764,2063.1,2062.7,2.72858184]
[1772087858436,2.81645355,2063.4,2062.7,2.72858184]
[1772087859336,2.82160549,2063.4,2062.7,2.72858184]
[1772087859531,2.81645355,2063.2,2062.7,2.72858184]
[1772087867340,0.00515194,2063.4,2062.7,2.72858184]
[1772087867634,2.82160549,2063.4,2062.7,2.72858184]
[1772087868832,2.81645355,2063.2,2062.7,2.72858184]
[1772087869838,0.00515194,2063.4,2062.7,2.72858184]
[1772087870041,2.81645355,2063.8,2063.1,2.72858184]
[1772087870339,2.81645355,2063.8,2063.2,2.72858184]
[1772087870937,2.82070239,2063.8,2063.2,2.72858184]
[1772087871140,2.82070239,2063.8,2063.2,2.73206921]
[1772087875148,2.81645355,2063.6,2063.2,2.73206921]
[1772087876444,2.84625712,2063.4,2063.1,6.347]
[1772087876740,2.84625712,2063.5,2063.2,2.68679137]
[1772087877549,2.84625712,2063.5,2063.2,2.69299868]
[1772087879850,2.84625712,2063.7,2063.2,2.69299868]
[1772087881254,2.84625712,2063.7,2063.2,0.00620731]
[1772087881453,4.03124534,2063.7,2063.2,0.00620731]
[1772087881757,2.84625712,2063.4,2063.1,5.445]
[1772087881956,2.84625712,2063.4,2062.9,9.03379137]
[1772087882652,2.84625712,2063.4,2062.9,9.03858981]
[1772087883952,0.00424884,2063.8,2063.0,2.68679137]
[1772087883953,2.84625712,2063.6,2063.0,2.68679137]
[1772087885450,2.84625712,2063.5,2063.0,2.68679137]
[1772087888052,2.84625712,2063.5,2062.9,6.35179844]
[1772087888250,2.84625712,2063.3,2062.9,6.35179844]
[1772087888550,2.84625712,2062.9,2062.3,2.68679137]
[1772087888756,2.84625712,2062.7,2062.2,2.68679137]
[1772087889059,2.84625712,2062.7,2062.3,6.347]
[1772087889258,2.84625712,2062.7,2062.2,9.03379137]
[1772087889460,2.84625712,2062.7,2062.3,2.68679137]
[1772087889855,2.84625712,2062.7,2062.3,2.6913705]
[1772087890658,2.84625712,2062.9,2062.3,2.6913705]
[1772087891258,2.84625712,2063.2,2062.4,2.68679137]
[1772087891458,2.84625712,2063.0,2062.6,2.68679137]
[1772087892268,2.84625712,2063.1,2062.6,2.68679137]
[1772087895565,2.84625712,2063.2,2062.6,2.68679137]
[1772087911274,2.80348813,2063.5,2062.6,2.68679137]
[1772087911483,5.56382195,2063.4,2062.6,2.68679137]
[1772087911776,2.80348813,2063.5,2062.6,2.68679137]
[1772087912673,2.80348813,2063.5,2062.5,6.347]
[1772087912674,2.80348813,2063.1,2062.5,6.347]
[1772087913281,2.80348813,2063.1,2062.3,0.00457913]
[1772087913677,2.80348813,2062.9,2062.3,0.00457913]
[1772087915180,2.80348813,2062.9,2062.3,2.58624913]
[1772087917078,2.56812845,2063.1,2062.3,2.58624913]
[1772087917278,2.56812845,2062.9,2062.3,2.58624913]
[1772087929981,2.56812845,2062.7,2062.0,2.58167]
[1772087930989,2.56812845,2062.7,2062.0,2.58778221]
[1772087936098,2.50043729,2063.0,2062.0,2.58778221]
[1772087936797,2.50043729,2063.0,2062.1,2.5882674]
[1772087939594,2.50043729,2063.3,2062.3,2.5882674]
[1772087939801,2.50043729,2063.3,2062.5,2.5882674]
[1772087941795,2.50043729,2063.6,2062.5,2.5882674]
[1772087941996,2.50043729,2063.4,2062.5,2.5882674]
[1772087944801,1.18439335,2063.5,2062.5,2.5882674]
[1772087944802,2.50043729,2063.3,2062.5,2.5882674]
[1772087945702,2.50043729,2063.3,2062.4,8.9362674]
[1772087947098,2.50043729,2063.3,2062.5,2.5882674]
[1772087967314,2.50043729,2063.3,2062.6,2.54420811]
[1772087969020,2.40669791,2063.5,2062.6,2.54420811]
[1772087969222,5.98057193,2063.4,2062.6,2.54420811]
[1772087969421,5.57832273,2063.3,2062.6,2.54420811]
[1772087969621,7.98502064,2063.3,2062.6,2.54420811]
[1772087969822,2.40669791,2063.3,2062.6,2.54420811]
[1772087971723,2.40669791,2063.1,2062.6,2.54420811]
[1772087972119,2.40669791,2063.1,2062.5,2.54420811]
[1772087976717,6.47038093,2063.7,2063.0,2.41405225]
[1772087976933,8.41216489,2063.6,2063.0,2.41405225]
[1772087977116,2.42829451,2063.6,2063.0,2.41405225]
[1772087977320,2.42829451,2063.7,2063.0,2.41405225]
[1772087977518,5.57951257,2063.6,2063.0,2.41405225]
[1772087977719,2.42829451,2063.7,2063.0,2.41405225]
[1772087978130,1.18419863,2063.5,2062.8,8.76205225]
[1772087978428,2.42829451,2063.4,2062.9,2.41405225]
[1772087979230,2.42829451,2063.2,2062.8,8.76205225]
[1772087979426,2.42829451,2063.2,2062.9,2.41405225]
[1772087979627,3.61249314,2063.3,2062.9,2.41405225]
[1772087979929,2.42829451,2063.2,2062.9,2.41405225]
[1772087984933,2.42829451,2063.4,2062.9,2.41405225]
[1772087993140,2.42829451,2063.5,2062.9,2.41405225]
[1772087993342,2.42829451,2063.6,2062.9,2.41405225]
[1772087995254,2.42829451,2064.0,2063.5,2.41405225]
[1772087995453,2.42829451,2064.0,2063.5,8.76305225]
[1772087995654,2.42829451,2064.0,2063.6,2.41405225]
[1772087996251,2.43417308,2064.0,2063.6,2.41763649]
[1772087996449,2.43417308,2064.0,2063.6,0.00358424]
[1772087997551,2.43417308,2064.0,2063.6,2.57792391]
[1772087998154,2.43417308,2064.0,2063.6,0.00358424]
[1772087998454,2.46740724,2063.7,2063.5,6.349]
[1772087998653,2.46740724,2063.7,2063.3,8.92333967]
[1772087998848,2.46740724,2063.7,2063.3,6.349]
[1772087999055,1.18419863,2063.6,2063.1,6.349]
[1772087999250,1.18419863,2063.6,2063.0,2.57433967]
[1772087999251,2.46740724,2063.5,2063.0,6.349]
[1772087999451,2.46740724,2063.5,2063.0,6.35305678]
[1772088001156,2.46740724,2063.3,2062.8,6.349]
[1772088001654,2.46740724,2063.3,2062.9,2.57433967]
[1772088002245,2.46740724,2063.5,2062.9,2.57433967]
[1772088002445,2.46740724,2063.5,2062.9,2.57962037]
[1772088003252,2.46740724,2063.7,2063.0,2.57433967]
[1772088003455,2.46740724,2063.7,2063.2,2.57433967]
[1772088005951,2.46740724,2063.9,2063.2,2.57433967]
[1772088006159,5.5637723,2063.8,2063.2,2.57433967]
[1772088006355,2.46740724,2063.9,2063.2,2.57433967]
[1772088006555,8.03237741,2063.8,2063.2,2.57433967]
[1772088006758,2.46740724,2063.8,2063.2,2.57433967]
[1772088007159,2.46740724,2063.5,2062.9,2.57962037]
[1772088007756,2.46740724,2063.3,2062.9,2.57962037]
[1772088012658,2.46740724,2063.5,2062.9,2.57962037]
[1772088013058,2.46740724,2063.8,2063.2,2.57433967]
[1772088013254,2.46740724,2063.8,2063.3,2.57433967]
[1772088015759,2.46740724,2063.9,2063.3,2.57433967]
[1772088020967,2.46740724,2064.4,2063.9,2.57433967]
[1772088021864,2.47346505,2064.4,2063.9,2.57433967]
[1772088026072,2.56192349,2064.2,2063.6,8.72105542]
[1772088026273,2.56192349,2064.2,2063.5,6.349]
[1772088026471,2.56192349,2064.0,2063.5,6.349]
[1772088027272,2.56192349,2064.0,2063.4,2.37205542]
[1772088028365,2.56192349,2064.0,2063.2,3.55625405]
[1772088028671,2.56192349,2063.8,2063.1,8.72105542]
[1772088028865,1.18419863,2063.7,2062.9,0.0052807]
[1772088029066,2.56192349,2063.6,2063.0,2.37205542]
[1772088029268,2.56192349,2063.6,2062.9,0.0052807]
[1772088030071,2.56192349,2063.6,2062.9,2.37733612]
[1772088034176,2.44953474,2063.8,2062.9,2.37733612]
[1772088057690,2.48950772,2063.6,2062.9,0.0052807]
[1772088057891,2.48950772,2063.4,2062.9,0.0052807]
[1772088058085,2.48950772,2063.4,2062.8,2.45684487]
[1772088059192,2.48950772,2063.4,2062.8,2.46053384]
[1772088059597,2.48950772,2063.4,2062.8,0.00368897]
[1772088060302,2.48950772,2063.2,2062.3,2.45684487]
[1772088060502,2.48950772,2062.9,2062.2,2.45684487]
[1772088060705,2.48950772,2062.7,2062.1,8.80584487]
[1772088060904,2.48950772,2062.7,2062.0,2.45684487]
[1772088061197,2.48950772,2062.7,2062.0,0.00582908]
[1772088061198,2.48950772,2062.5,2062.0,0.00582908]
[1772088061402,2.48950772,2062.5,2061.9,13.27360935]
[1772088061600,2.48950772,2062.5,2061.7,2.45684487]
[1772088062406,2.48950772,2062.5,2061.7,2.46049844]
[1772088066004,0.00572322,2062.7,2061.7,2.46049844]
[1772088066005,2.48950772,2062.6,2061.7,2.46049844]
[1772088066204,0.00572322,2062.7,2061.7,2.46049844]
[1772088066411,2.49523094,2062.7,2061.7,2.46049844]
[1772088067309,0.00572322,2062.7,2061.7,2.46049844]
[1772088067506,2.49523094,2062.7,2061.9,2.45684487]
[1772088067906,2.48950772,2063.0,2062.1,2.45684487]
[1772088068108,2.48950772,2063.0,2062.2,2.45684487]
[1772088068812,2.49423712,2063.0,2062.2,2.45684487]
[1772088070708,0.0047294,2063.0,2062.2,2.45684487]
[1772088070911,2.49423712,2063.0,2062.2,2.45684487]
[1772088075216,2.49996034,2063.0,2062.2,2.45684487]
[1772088075417,2.49423712,2063.0,2062.2,2.45684487]
[1772088075714,2.48950772,2062.7,2062.2,2.45684487]
[1772088076311,2.49523094,2062.7,2062.2,2.45684487]
[1772088080822,2.49523094,2062.6,2062.2,2.45684487]
[1772088081022,2.48950772,2062.6,2062.2,2.45684487]
[1772088081919,2.49523094,2062.6,2062.2,2.45684487]
[1772088085321,2.49523094,2062.5,2062.1,8.80584487]
[1772088085529,2.48950772,2062.5,2061.9,2.45684487]
[1772088085925,2.5048875,2062.4,2061.9,2.45684487]
[1772088086124,2.49916428,2062.4,2061.9,2.45684487]
[1772088086426,2.5048875,2062.4,2061.9,2.45684487]
[1772088087730,0.00572322,2062.3,2061.9,2.45684487]
[1772088087926,2.49916428,2062.5,2061.9,2.45684487]
[1772088088126,2.49916428,2062.9,2061.9,2.45684487]
[1772088088324,2.49916428,2062.7,2061.9,2.45684487]
[1772088088725,2.5048875,2062.7,2061.9,2.45684487]
[1772088089031,2.49916428,2062.7,2061.9,2.45684487]
[1772088089333,2.49916428,2062.5,2061.9,2.45684487]
[1772088089727,2.5048875,2062.5,2061.9,2.45684487]
[1772088090931,2.49916428,2062.7,2061.9,2.45684487]
[1772088091331,2.5048875,2062.5,2061.9,2.45684487]
[1772088091532,2.49916428,2062.5,2061.9,2.45684487]
[1772088091835,2.5048875,2062.4,2061.9,2.45684487]
[1772088092134,2.49916428,2062.4,2061.9,2.45684487]
[1772088092934,2.49916428,2062.4,2061.8,6.349]
[1772088092935,2.5048875,2062.2,2061.8,8.86312174]
[1772088093137,2.49916428,2062.2,2061.8,8.86312174]
[1772088093337,0.00572322,2062.0,2061.7,2.51777531]
[1772088093537,2.49916428,2062.1,2061.7,2.51777531]
[1772088093938,0.00572322,2062.0,2061.7,2.51777531]
[1772088094131,2.36534995,2062.2,2061.7,2.51777531]
[1772088094332,0.00572322,2062.0,2061.7,2.51777531]
[1772088094527,2.36534995,2062.2,2061.7,2.51777531]
[1772088094828,2.36534995,2062.5,2061.9,2.46991834]
[1772088095033,2.36534995,2062.5,2061.7,0.00365357]
[1772088095337,2.36534995,2062.3,2061.7,0.00365357]
[1772088095534,2.36534995,2062.0,2061.7,0.00365357]
[1772088095727,2.36534995,2062.0,2061.5,2.46991834]
[1772088095929,2.37107317,2061.8,2061.5,2.46991834]
[1772088096136,2.36534995,2061.8,2061.5,2.46991834]
[1772088096433,2.36534995,2061.8,2061.3,2.46991834]
[1772088096434,0.00572322,2061.6,2061.3,2.46991834]
[1772088096632,2.36534995,2061.6,2061.3,2.47356001]
[1772088096836,2.36534995,2061.6,2061.3,0.00364167]
[1772088097038,0.00572322,2061.4,2061.3,0.00364167]
[1772088097233,2.36534995,2061.6,2061.3,2.47356001]
[1772088097836,2.36534995,2062.2,2061.3,2.47356001]
[1772088098139,2.36534995,2062.0,2061.3,2.47356001]
[1772088099640,2.36534995,2062.1,2061.3,2.47356001]
[1772088103743,2.36534995,2062.1,2061.0,2.46991834]
[1772088104843,2.36534995,2062.1,2061.0,2.47575886]
[1772088105440,2.36534995,2061.9,2061.0,2.47575886]
[1772088111349,2.36534995,2062.1,2061.1,2.46991834]
[1772088119151,2.40336946,2061.9,2061.1,2.46991834]
[1772088119351,2.40336946,2061.9,2061.2,2.3826044]
[1772088119952,2.40336946,2061.9,2061.4,2.3826044]
[1772088120147,2.40336946,2061.9,2061.2,2.3826044]
[1772088129958,2.40336946,2062.0,2061.4,1.1859321]
[1772088130163,2.40782345,2062.2,2061.9,2.3826044]
[1772088130364,0.00445399,2062.2,2061.9,2.3826044]
[1772088130662,2.40336946,2062.3,2061.9,2.3826044]
[1772088131562,2.40943919,2062.3,2061.9,2.3826044]
[1772088132159,2.40336946,2062.5,2062.1,2.3826044]
[1772088132761,1.1859321,2062.8,2062.3,2.3826044]
[1772088132762,2.40336946,2062.8,2062.3,2.3826044]
[1772088133166,2.40958007,2062.8,2062.3,2.3826044]
[1772088134971,2.40336946,2062.7,2062.3,2.3826044]
[1772088135166,2.40336946,2062.7,2062.0,1.1859321]
[1772088135467,2.40336946,2062.7,2062.1,2.3826044]
[1772088136870,2.40336946,2062.7,2061.9,2.3826044]
[1772088139570,2.40336946,2062.7,2062.1,2.3826044]
[1772088139971,2.40958007,2062.8,2062.3,2.3826044]
[1772088143877,2.40958007,2062.8,2062.1,2.3826044]
[1772088146470,2.40958007,2062.8,2061.8,7.5359321]
[1772088146676,3.77193608,2062.3,2061.5,2.47134017]
[1772088146871,2.58600398,2062.3,2061.5,2.47134017]
[1772088147070,2.58600398,2062.3,2061.4,1.1859321]
[1772088147071,2.58600398,2062.3,2061.7,2.47134017]
[1772088151275,2.58600398,2062.4,2061.7,2.47134017]
[1772088151475,2.58600398,2062.7,2061.7,2.47134017]
[1772088154586,2.58600398,2062.7,2062.0,2.51461843]